Cogmind - Beta 13 @@@ ROGUE MODE // 2024.03.13 @ 10:09:13 Player: Zirov Result: Destroyed by D-53 Grenadier with Mini Grenade Launcher Performance ------------- Evolutions (0) 0 Regions Visited (2) 400 Robots Destroyed (25) 125 Value Destroyed (529) 529 Prototype IDs (2) 40 Alien Tech Used (0) 0 Bonus (0) 0 TOTAL SCORE: 1094 Bonus ------- None Cogmind --------- Core Integrity 0/250 Matter 206/300 Energy 99/100 System Corruption 0% Temperature Cool (0) Movement Core (400) Ox7 Location -10/Mines Parts ------- > --- POWER (1) -------- (None) > --- PROPULSION (2) --- (None) > --- UTILITY (2) ------ Large Storage Unit > --- WEAPON (2) ------- Heavy Hammer > --- INVENTORY (15) --- Ion Engine Light Nuclear Core Heat Sink High-capacity Storage Unit Large Matter Pod (75) Signal Interpreter Heavy Assault Rifle Heavy Assault Rifle Heavy Assault Rifle Heavy Hammer Mining Claw Peak State ------------ > --- POWER ------------ Ion Engine > --- PROPULSION ------- Light Treads Light Treads > --- UTILITY ---------- Large Storage Unit Medium Armor Plating > --- WEAPON ----------- Heavy Assault Rifle Heavy Assault Rifle > --- INVENTORY -------- Ion Engine Light Nuclear Core Light Treads Heat Sink High-capacity Storage Unit Large Matter Pod Signal Interpreter Medium Armor Plating Medium Armor Plating Heavy Assault Rifle Heavy Assault Rifle Grenade Launcher Heavy Hammer Heavy Hammer Mining Claw [Rating: 12] Favorites ----------- Power Ion Engine Engine Ion Engine Propulsion Light Treads Treads Light Treads Utility Large Storage Unit Storage Large Storage Unit Protection Medium Armor Plating Weapon Assault Rifle Ballistic Gun Assault Rifle Launcher Grenade Launcher Impact Weapon Heavy Hammer Build | -11 -10 -10 ------- Run | Yrd Mat Min Slots Evolved . | . . . Power . | . . . Propulsion . | . . . Utility . | . . . Weapon . | . . . Parts Attached 30 | 6 19 5 Power 2 | 1 1 . Engine 2 | 1 1 . Core . | . . . Reactor . | . . . Propulsion 10 | 2 7 1 Treads 10 | 2 7 1 Leg . | . . . Wheel . | . . . Hover . | . . . Flight . | . . . Utility 6 | 1 3 2 Device . | . . . Storage 2 | 1 1 . Processor . | . . . Hackware . | . . . Protection 4 | . 2 2 Artifact . | . . . Weapon 12 | 2 8 2 Energy Gun . | . . . Energy Cannon . | . . . Ballistic Gun 10 | 2 8 . Ballistic Cannon . | . . . Launcher 1 | . . 1 Special Weapon . | . . . Impact Weapon 1 | . . 1 Slashing Weapon . | . . . Piercing Weapon . | . . . Special Melee Weapon . | . . . Unidentified Prototypes . | . . . Parts Lost 8 | . . 8 Power 1 | . . 1 Propulsion 3 | . . 3 Utility 3 | . . 3 Weapon 1 | . . 1 Highest Loss Streak 7 | . . 7 To Critical Strikes . | . . . Average Slot Usage (%) 97 | . 97 99 Engine 14 | . 14 14 Treads 26 | . 26 27 Storage 14 | . 14 14 Protection 13 | . 13 13 Ballistic Gun 20 | . 27 7 Launcher 3 | . . 10 Impact Weapon 3 | . . 10 Naked Turns . | . . . Heaviest Build 38 | 11 38 38 Greatest Support 40 | 40 40 40 Greatest Overweight (x) 12 | 3 12 7 Average Overweight (x) . | . . . Largest Inventory Capacity 15 | 8 15 15 Average Capacity 13 | 7 12 15 Most Carried 15 | 1 15 15 Average Carried 10 | . 9 13 Final Capacity 15 | 8 15 15 Final Carried 15 | 1 15 11 Class Distribution -------------------- 100% | Mutant Dominant Class ---------------- Mutant | -10/Materials Mutant | -10/Mines Resources | -11 -10 -10 ----------- Run | Yrd Mat Min Matter Collected 811 | 194 427 190 Remotely . | . . . Salvage Created 666 | . 474 192 Parts 37 | . 30 7 Haulers Intercepted 2 | . 2 . Recyclers Shooed 2 | . 1 1 Parts Field Recycled . | . . . Retrieved Matter . | . . . Parts Self-Destructed . | . . . Prevented . | . . . Kills | -11 -10 -10 ------- Run | Yrd Mat Min Combat Hostiles Destroyed 23 | . 12 11 Melee 1 | . . 1 Guns 17 | . 12 5 AOE 4 | . . 4 Classes Destroyed 5 | . 4 1 Hauler 2 | . 2 . Watcher 1 | . 1 . Swarmer 12 | . 6 6 Grunt 10 | . 6 4 Assembled 1 | . . 1 Best Kill Streak 4 | . 3 4 Combat Bots Only 4 | . 3 4 Max Kills in Single Turn 2 | . 1 2 Gunslinging . | . . . Exploded 2 | . . 2 Melee 1 | . . 1 Uniques/NPCs Destroyed . | . . . Combat | -11 -10 -10 -------- Run | Yrd Mat Min Hostile Shots Fired 134 | . 42 92 Missed 37 | . 12 25 Damage Taken 1631 | . 338 1293 Core 265 | . 39 226 Absorbed by Shields . | . . . Regen/Repaired (Parts) 194 | . 194 . Core Remaining (%) 100 | 100 . . Volleys Fired 62 | . 45 17 Largest 2 | . 2 2 Hottest 46 | . 46 46 Shots Fired 120 | . 90 30 Gun 116 | . 90 26 Cannon . | . . . Launcher 4 | . . 4 Special . | . . . Kinetic 116 | . 90 26 Thermal . | . . . Explosive 4 | . . 4 Electromagnetic . | . . . Robot Hit Streak 11 | . 11 6 Robot Miss Streak 4 | . 4 2 Penetration Max . | . . . Secondary Targets . | . . . Shots Hit Robots 85 | . 57 28 Core Hits 39 | . 25 14 Critical Kills . | . . . Critical Parts Destroyed 1 | . . 1 Critical Strikes 1 | . . 1 Smash 1 | . . 1 Melee Attacks 13 | . . 13 Impact 13 | . . 13 Slashing . | . . . Piercing . | . . . Sneak Attacks . | . . . Combat Hostiles . | . . . Follow-up Attacks . | . . . Damage Inflicted 1566 | . 687 879 Guns 993 | . 687 306 Cannons . | . . . Explosions 184 | . . 184 Melee 389 | . . 389 Ramming . | . . . Kinetic 993 | . 687 306 Thermal . | . . . Explosive 184 | . . 184 Electromagnetic . | . . . Impact 389 | . . 389 Slashing . | . . . Piercing . | . . . Highest Corruption . | . . . Average Corruption . | . . . Corruption Purged . | . . . Corruption Blocked . | . . . Overload Shots . | . . . Overflow Damage 83 | . . 83 Projectiles . | . . . Explosions 8 | . . 8 Melee 75 | . . 75 Knockbacks 2 | . . 2 Impact 2 | . . 2 Kinetic . | . . . Secondary . | . . . Self-Inflicted Damage 6 | . . 6 Shots 1 | . . 1 Rammed . | . . . Targets Rammed . | . . . Kicked . | . . . Crushed . | . . . Highest Temperature 44 | . 24 44 Average Temperature 15 | . 5 23 Received Heat Transfer 369 | . 126 243 Siege Activations . | . . . Robots Corrupted . | . . . Combat Hostiles . | . . . Parts Fried . | . . . Impact Corruptions 2 | . . 2 Robots Melted . | . . . Combat Hostiles . | . . . Parts Melted . | . . . Heat Transferred . | . . . Parts Sabotaged . | . . . Parts Stolen . | . . . Parts Stripped . | . . . Power Chain Reactions . | . . . Alert | -11 -10 -10 ------- Run | Yrd Mat Min Peak Influence 236 | . 170 236 Initial 34 | . . 34 Average 90 | . 63 148 Maximum Alert Level 1 | . . 1 Low Security (%) 87 | 100 100 63 Level 1 12 | . . 36 Level 2 . | . . . Level 3 . | . . . Level 4 . | . . . Level 5 . | . . . High Security . | . . . Max Security . | . . . Squads Dispatched 1 | . 1 . Investigation . | . . . Extermination . | . . . Reinforcement 1 | . 1 . Assault . | . . . Garrison . | . . . Intercept . | . . . Searches Triggered . | . . . Construction Impeded . | . . . Haulers Reinforced . | . . . Active Scanning Responses . | . . . Cargo Convoy Interrupts . | . . . Stealth | -11 -10 -10 --------- Run | Yrd Mat Min Distress Signals 1 | . 1 . Communications Jammed . | . . . Distress Signals . | . . . Times Spotted 34 | . 21 13 Peak Tracking Total 5 | . 5 4 Tactical Retreats 1 | . 1 . Traps | -11 -10 -10 ------- Run | Yrd Mat Min Traps Triggered 3 | . 3 . Indirectly . | . . . Trap Hack Attempts . | . . . Triggered . | . . . Disarmed . | . . . Reprogrammed . | . . . Reused . | . . . Traps Extracted . | . . . Installed . | . . . Triggered . | . . . Machines | -11 -10 -10 ---------- Run | Yrd Mat Min Machines Disabled 1 | . . 1 Max in Single Turn 1 | . . 1 Machines Repaired . | . . . Machines Dismantled . | . . . Machines Sabotaged . | . . . Overloaded Fab Kills . | . . . Hacking | -11 -10 -10 --------- Run | Yrd Mat Min Machines Accessed 6 | . 5 1 Terminals 5 | . 4 1 Fabricators . | . . . Repair Stations 1 | . 1 . Recycling Units . | . . . Scanalyzers . | . . . Garrison Access . | . . . Total Hacks 28 | . 27 1 Successful 20 | . 19 1 Failed 8 | . 8 . Catastrophic . | . . . Database Lockouts . | . . . Manual 7 | . 7 . Terminals 19 | . 18 1 Fabricators . | . . . Repair Stations 9 | . 9 . Recycling Units . | . . . Scanalyzers . | . . . Garrison Access . | . . . Terminal Hacks 9 | . 8 1 Robot Analysis 1 | . 1 . Prototype ID Bank 1 | . 1 . Branch Access Points 1 | . 1 . Locate Traps 2 | . 2 . Registered Components 1 | . 1 . Zone Layout 3 | . 2 1 Fabricator Hacks . | . . . Repair Station Hacks 8 | . 8 . Scan Component 4 | . 4 . Repair 4 | . 4 . Recycling Unit Hacks . | . . . Scanalyzer . | . . . Garrison Access Hacks . | . . . Unauthorized Hacks 3 | . 3 . Terminals 3 | . 3 . Botnet 3 | . 3 . Fabricators . | . . . Repair Stations . | . . . Recycling Units . | . . . Scanalyzers . | . . . Garrison Access . | . . . Data Cores Recovered . | . . . Used . | . . . Hacking Detections 4 | . 4 . Full Trace Events . | . . . Feedback Events . | . . . Feedback Blocked . | . . . Robot Schematics Acquired . | . . . Robots Built . | . . . Authchips . | . . . Time . | . . . Total Robot Build Rating . | . . . Part Schematics Acquired . | . . . Parts Built . | . . . Authchips . | . . . Time . | . . . Total Part Build Rating . | . . . Parts Repaired 4 | . 4 . Time 104 | . 104 . Parts Recycled . | . . . Recycled Matter . | . . . Retrieved Matter . | . . . Retrieved Components . | . . . Parts Scanalyzed . | . . . Part Schematics Acquired . | . . . Parts Damaged . | . . . Bothacking | -11 -10 -10 ------------ Run | Yrd Mat Min Used RIF Installer . | . . . Robots Hacked . | . . . Non-combat . | . . . Combat . | . . . Robot Hacks Applied . | . . . Relay Couplers Released . | . . . Fabnet Peak Effective % . | . . . Robots Rewired . | . . . Allies Hacked . | . . . Hacks Repelled . | . . . Allies | -11 -10 -10 -------- Run | Yrd Mat Min Total Allies . | . . . Largest Group . | . . . Highest-Rated Group . | . . . Highest-Rated Ally . | . . . Total Orders . | . . . Ally Attacks . | . . . Total Damage . | . . . Kills . | . . . Allies Corrupted . | . . . Allies Melted . | . . . Intel | -11 -10 -10 ------- Run | Yrd Mat Min Robot Analysis Total 1 | . 1 . Derelict Logs Recovered 1 | . . 1 Drone Launches . | . . . Drone Recoveries . | . . . Exploration | -11 -10 -10 ------------- Run | Yrd Mat Min Turns Passed 1866 | 62 1155 649 Spaces Moved 876 | 36 502 338 Core 11 | 9 1 1 Treads 865 | 27 501 337 Legs . | . . . Wheels . | . . . Hover . | . . . Flight . | . . . Fastest Speed 50 | 50 160 160 Average Speed 161 | 147 161 161 Slowest Speed 650 | 200 650 400 Overloaded Moves . | . . . Propulsion Burnouts . | . . . Robots Hopped . | . . . Cave-ins Triggered . | . . . Exploration Rate (%) 46 | 4 66 69 Regions Visited 2 Branch Regions 1 Pre-discovered Areas . | . . . Known Exits Taken 1 | . 1 . Unknown Exits Taken 1 | 1 . . Scrap Searched . | . . . Spaces Dug 1 | . . 1 Terrain Destroyed 25 | . . 25 Melee 1 | . . 1 Projectile . | . . . AOE 24 | . . 24 Terrain Rammed . | . . . Walls Destroyed . | . . . Machines Disabled . | . . . Actions | -11 -10 -10 --------- Run | Yrd Mat Min Total 1193 | 42 759 392 Wait 181 | . 163 18 Move 874 | 35 501 338 Hop . | . . . Pick Up 19 | 1 18 . Fast Attach 16 | 6 10 . Attach 4 | . . 4 Detach . | . . . Swap 10 | . 9 1 Drop 14 | . 13 1 Fire 62 | . 45 17 Melee 13 | . . 13 Ram . | . . . Kick . | . . . Crush . | . . . Escape Stasis . | . . . Rewire . | . . . Trap . | . . . Miscellaneous . | . . . Route ------- -11/Scrapyard -10/Materials (discovered 4 exits: [*Mat x3] / *Min) -10/Mines (discovered 2 exits: [*Mat x2]) History --------- Turn | Location | Event 21 | -11/Scrapyard | Discovered new exit (range 16) 63 | -11/Scrapyard | Entered Materials 238 | -10/Materials | Discovered new exit (range 3) 318 | -10/Materials | Build established: Mutant 428 | -10/Materials | Discovered new exit (range 16) 492 | -10/Materials | Identified exit to Mines 545 | -10/Materials | Repaired Lgt. Treads 572 | -10/Materials | Repaired Lgt. Treads 638 | -10/Materials | Discovered new exit (range 6) 929 | -10/Materials | Discovered new exit (range 13) 1168 | -10/Materials | Repaired Lgt. Treads 1196 | -10/Materials | Repaired Lgt. Treads 1218 | -10/Materials | Entered Mines 1286 | -10/Mines | Discovered new exit (range 15) 1286 | -10/Mines | Discovered new exit (range 15) 1322 | -10/Mines | Found a hidden stash of uninstalled traps 1562 | -10/Mines | Learned Materials stockpile data 1814 | -10/Mines | Assembled infested the area 1861 | -10/Mines | Core integrity fell below 50% 1865 | -10/Mines | Core integrity fell below 20% 1867 | -10/Mines | Destroyed by D-53 Grenadier with Mini Grenade Launcher Last Messages --------------- 01720_ Acquired 33 matter. 01768_ K-01 Serf collects debris. 01809_ A derelict is hurriedly installing traps. 01811_ W1-I1Y(g): "Hehe, this'll put a wrench in their mining defense operations..." 01811_ W1-I1Y(g) slips into the shadows. 01814_ ALERT: Infestation in the mines, dispatching Demolisher response squad. 01842_ C-30 ARC bursts open, deploying its payload. 01842_ D-53 Grenadier unfolds itself. 01843_ K-01 Serf collects debris. 01851_ Med. Armor Plating destroyed. 01857_ as-24987 destroyed. 01857_ Lgt. Treads destroyed. 01858_ Med. Armor Plating destroyed. 01859_ Grenade Launcher destroyed. 01859_ Lgt. Treads destroyed. 01860_ Ion Engine destroyed. 01865_ Lgt. Treads destroyed. 01867_ The unstable cave ceiling collapses. Map ----- +----------------------------------------------------+ | ???# #???# #??? | | ????# ##?# ##### ###??? | | ????# ## #???# #????? | | ?????# ##??# ###### | | ????????# ## #??# | | ????????????## #??######## | | ?????????????## ##????????? | | ??????????????# ##???????? | | ?????######??## ##??????? | | ???### #### #??????? | | ??## #??????? | | ??# % #??????? | | ?## ##??????? | | ?# ##??????? | | ?# ## ????? | | ?# #?? | | ?# ? | | ?# ####### ###? | | ?# ##??????# #??? | | ?# ##???????? #??? | | ?## ##?????????????? | | ??## d### ##??????????????? | | ?## d ### ##???????????????? | | ## ####????????????????? | | # #??????????????????? | | # @ #??????????????????? | | # #??????????????????? | | # #??????????????????? | | # # #??????????????????? | | # #??????????????????? | | # #??????????????????? | | # #??????????????????? | | ## ##??????????????????? | | ?## ; ??????????????????? | | ??## ?????????????????? | | ??? ????????????????? | | ??? #???????????????? | | ??? ; #???????????????? | | ??## ^#???????????????? | | ???# # #???????????????? | | ???## #???????????????? | | ????? ?#???????????????? | | ????? ????????????????? | | ?????#### ??????????????????? | | ??????????# ?????????????????? | | ??????????? ?????????????????? | | ?????????????????????????????? | | ?????????????????????????????? | | ?????????????????????????????? | | ?????????????????????????????? | +----------------------------------------------------+ Best States ------------- Heat Dissipation 25 Energy Generation 10 Energy Capacity 250 Matter Stores 300 Matter Capacity 300 Sight Range 16 Terrain Scan Density 10 Armor Coverage 225 Evasion (%) 40 Recoil Reduction 2 Item Schematics ----------------- None Robot Schematics ------------------ None Fabricated ------------ Nothing Alien Tech Used ----------------- None Achievements -------------- None Challenges ------------ None Game ------ Seed HardlightServoImmobilizer Manual? 0 Play Time 00:28:31 Cumulative 138.6 hours Start 2024.03.13 @ 08:44:31 End 2024.03.13 @ 10:09:13 Sessions 1 Manual Loads 0 Difficulty Rogue Special Mode None Game No. 132 Rogue 132 Adventurer 0 Explorer 0 Win Type - Total 0 Types 0/0/0/0/0/0/0/0/0 Lore% 37 Gallery% 44 Achievement% 35 Wizard Run 0 Options --------- Layout 0 ASCII 1 Keyboard 0 Movement Mouse Keybinds 0 Fullscreen 1 Font 18/SmallcapsGlow Map View 76x50 Zoom Use 2% Tactical HUD 1 Map Filters NONE Filters NONE Steam 1 RUN: 6a05359a-2985-4bb8-a40d-54b1a525da1a